fUST/lending_fUST_20250606
["ID","MTS","AMOUNT","RATE_DAILY","PERIOD"]
[364555209,1749141041467,-977.61962131,0.00019314,2]
[364555211,1749141041476,-160.0,0.0001945,2]
[364555213,1749141041485,-519.95,0.00019451,2]
[364555215,1749141041494,-541.36,0.00019451,2]
[364555216,1749141041504,-1015.98,0.00019451,2]
[364555218,1749141041512,-440.0,0.00019451,2]
[364555220,1749141041522,-440.0,0.00019451,2]
[364555221,1749141041531,-440.0,0.00019451,2]
[364555223,1749141041542,-1147.64,0.00019451,2]
[364555225,1749141041552,-947.5,0.00019451,2]
[364555227,1749141041561,-440.0,0.00019451,2]
[364555228,1749141041571,-440.0,0.00019451,2]
[364555230,1749141041580,-440.0,0.00019451,2]
[364555232,1749141041589,-440.0,0.00019451,2]
[364555234,1749141041599,-440.0,0.00019451,2]
[364555236,1749141041609,-440.0,0.00019451,2]
[364555237,1749141041618,-390.0,0.00019451,2]
[364555239,1749141041628,-558.03,0.00019451,2]
[364555241,1749141041637,-440.0,0.00019451,2]
[364555243,1749141041646,-440.0,0.00019451,2]
[364555245,1749141041656,-440.0,0.00019451,2]
[364555246,1749141041665,-440.0,0.00019451,2]
[364555248,1749141041675,-440.0,0.00019451,2]
[364555250,1749141041685,-440.0,0.00019451,2]
[364555251,1749141041694,-195.31676408,0.00019452,2]
[364555253,1749141041703,-440.0,0.00019452,2]
[364555255,1749141041712,-440.0,0.00019452,2]
[364555257,1749141041721,-440.0,0.00019452,2]
[364555259,1749141041730,-440.0,0.00019452,2]
[364555260,1749141041740,-440.0,0.00019452,2]
[364555262,1749141041749,-440.0,0.00019452,2]
[364555264,1749141041759,-440.0,0.00019452,2]
[364555266,1749141041768,-450.7901076,0.00019452,2]
[364555268,1749141041780,-440.0,0.00019452,2]
[364555270,1749141041789,-440.0,0.00019452,2]
[364555271,1749141041798,-440.0,0.00019452,2]
[364555273,1749141041808,-440.0,0.00019452,2]
[364555275,1749141041818,-380.0,0.00019452,2]
[364555277,1749141041827,-313.29837282,0.00019452,2]
[364555279,1749141041836,-440.0,0.00019452,2]
[364555281,1749141041846,-440.0,0.00019452,2]
[364555282,1749141041856,-440.0,0.00019452,2]
[364555284,1749141041866,-413.8115949,0.00019452,2]
[364555286,1749141041875,-444.01025371,0.00019452,2]
[364555287,1749141041885,-440.0,0.00019452,2]
[364555289,1749141041894,-440.0,0.00019452,2]
[364555291,1749141041903,-420.0,0.00019452,2]
[364555293,1749141041913,-440.0,0.00019452,2]
[364555294,1749141041923,-440.0,0.00019452,2]
[364555296,1749141041932,-440.0,0.00019452,2]
[364555298,1749141041942,-458.97257767,0.00019452,2]
[364555300,1749141041952,-440.0,0.00019452,2]
[364555302,1749141041962,-374.3352832,0.00019452,2]
[364555303,1749141041972,-440.0,0.00019452,2]
[364555305,1749141041982,-912.28,0.00019452,2]
[364555307,1749141041991,-440.0,0.00019452,2]
[364555309,1749141042001,-440.0,0.00019452,2]
[364555311,1749141042010,-440.0,0.00019452,2]
[364555312,1749141042021,-440.0,0.00019452,2]
[364555314,1749141042031,-444.32761816,0.00019452,2]
[364555316,1749141042040,-440.0,0.00019452,2]
[364555318,1749141042049,-440.0,0.00019452,2]
[364555319,1749141042059,-440.0,0.00019452,2]
[364555321,1749141042068,-440.0,0.00019452,2]
[364555323,1749141042078,-440.0,0.00019452,2]
[364555325,1749141042088,-440.0,0.00019452,2]
[364555327,1749141042098,-440.0,0.00019452,2]
[364555328,1749141042107,-440.0,0.00019452,2]
[364555330,1749141042116,-566.79153084,0.00019452,2]
[364555332,1749141042125,-493.57,0.00019452,2]
[364555334,1749141042134,-440.0,0.00019452,2]
[364555336,1749141042143,-440.0,0.00019452,2]
[364555347,1749141042261,-440.0,0.00019452,2]
[364555348,1749141042273,-16264.26,0.00019452,2]
[364555350,1749141042282,-440.0,0.00019452,2]
[364555352,1749141042292,-440.0,0.00019452,2]
[364555354,1749141042301,-440.0,0.00019452,2]
[364555356,1749141042311,-440.0,0.00019452,2]
[364555358,1749141042320,-1018.29,0.00019452,2]
[364555359,1749141042330,-440.0,0.00019452,2]
[364555361,1749141042341,-440.0,0.00019452,2]
[364555363,1749141042354,-440.0,0.00019452,2]
[364555365,1749141042364,-440.0,0.00019452,2]
[364555367,1749141042373,-582.13,0.00019452,2]
[364555369,1749141042384,-440.0,0.00019452,2]
[364555370,1749141042394,-516.29831389,0.00019452,2]
[364555372,1749141042403,-440.0,0.00019452,2]
[364555374,1749141042412,-440.0,0.00019452,2]
[364555376,1749141042425,-440.0,0.00019452,2]
[364555378,1749141042436,-440.0,0.00019452,2]
[364555380,1749141042445,-440.0,0.00019452,2]
[364555381,1749141042454,-440.0,0.00019452,2]
[364555383,1749141042464,-364.69325037,0.00019452,2]
[364555385,1749141042475,-440.0,0.00019452,2]
[364555387,1749141042485,-440.0,0.00019452,2]
[364555389,1749141042494,-440.0,0.00019452,2]
[364555391,1749141042504,-440.0,0.00019452,2]
[364555393,1749141042514,-1067.31,0.00019452,2]
[364555396,1749141042525,-440.0,0.00019452,2]
[364555399,1749141042534,-440.0,0.00019452,2]
[364555402,1749141042544,-658.12303884,0.00019489,2]
[364555405,1749141042554,-160.0,0.00019505,2]
[364555406,1749141042566,-229.48950782,0.00019505,2]
[364555408,1749141042578,-160.0,0.00019505,2]
[364555410,1749141042593,-160.0,0.00019505,2]
[364555413,1749141042602,-423.7637613,0.00019505,2]
[364555414,1749141042612,-191.3393546,0.00019505,2]
[364555417,1749141042631,-151.0,0.00019507,2]
[364555419,1749141042644,-151.0,0.00019507,2]
[364555421,1749141042655,-154.00667859,0.00019507,2]
[364555423,1749141042666,-153.75203831,0.00019507,2]
[364555425,1749141042676,-151.82357693,0.00019507,2]
[364555427,1749141042686,-500.0,0.00019507,2]
[364555429,1749141042697,-500.0,0.00019507,2]
[364555430,1749141042707,-281.16332978,0.00019507,2]
[364555432,1749141042718,-500.0,0.00019507,2]
[364555434,1749141042728,-500.0,0.00019507,2]
[364555436,1749141042739,-500.0,0.00019507,2]
[364555438,1749141042749,-154.17938525,0.00019507,2]
[364555440,1749141042759,-977.61962131,0.00019521,2]
[364555442,1749141042771,-151.0,0.00019534,2]
[364555444,1749141042781,-151.0,0.00019534,2]
[364555445,1749141042791,-500.0,0.00019534,2]
[364555447,1749141042802,-500.0,0.00019534,2]
[364555449,1749141042816,-574.737208,0.00019534,2]
[364555451,1749141042830,-500.83773021,0.00019534,2]
[364555453,1749141042840,-500.0,0.00019534,2]
[364555455,1749141042851,-151.0,0.00019562,2]
[364555457,1749141042864,-151.0,0.00019562,2]
[364555459,1749141042873,-519.70768548,0.00019562,2]
[364555461,1749141042883,-500.0,0.00019562,2]
[364555462,1749141042893,-500.0,0.00019562,2]
[364555464,1749141042903,-151.0,0.00019589,2]
[364555466,1749141042913,-158.6675179,0.00019589,2]
[364555468,1749141042922,-500.0,0.00019589,2]
[364555470,1749141042934,-500.0,0.00019589,2]
[364555472,1749141042944,-207.48916409,0.00019617,2]
[364555474,1749141042953,-500.0,0.00019617,2]
[364555476,1749141042963,-500.0,0.00019617,2]
[364555477,1749141042973,-12675.11581177,0.00019625,2]
[364555479,1749141042983,-315.01552021,0.00019625,2]
[364555481,1749141042994,-160.0,0.00019625,2]
[364555483,1749141043004,-160.0,0.00019625,2]
[364555485,1749141043013,-1000.0,0.00019633,2]
[364555487,1749141043026,-240.0,0.00019639,2]
[364555489,1749141043035,-500.0,0.00019644,2]
[364555491,1749141043045,-500.0,0.00019644,2]
[364555492,1749141043054,-500.0,0.00019671,2]
[364555494,1749141043064,-500.0,0.00019671,2]
[364555496,1749141043073,-500.0,0.00019699,2]
[364555498,1749141043082,-500.0,0.00019699,2]
[364555500,1749141043092,-16000.0,0.00019714,2]
[364555502,1749141043102,-519.95,0.00019725,2]
[364555503,1749141043111,-541.36,0.00019725,2]
[364555505,1749141043121,-1015.98,0.00019725,2]
[364555507,1749141043131,-580.92213898,0.00019725,2]
[364555509,1749141043141,-512.75401445,0.00019725,2]
[364555511,1749141043150,-440.0,0.00019725,2]
[364555513,1749141043159,-1147.64,0.00019725,2]
[364555514,1749141043169,-947.5,0.00019725,2]
[364555516,1749141043178,-440.0,0.00019725,2]
[364555518,1749141043187,-440.0,0.00019725,2]
[364555520,1749141043197,-440.0,0.00019725,2]
[364555522,1749141043206,-440.0,0.00019725,2]
[364555524,1749141043216,-440.0,0.00019725,2]
[364555525,1749141043225,-440.0,0.00019725,2]
[364555527,1749141043234,-558.03,0.00019725,2]
[364555529,1749141043244,-440.0,0.00019725,2]
[364555531,1749141043257,-440.0,0.00019725,2]
[364555533,1749141043266,-440.0,0.00019725,2]
[364555535,1749141043280,-440.0,0.00019725,2]
[364555537,1749141043290,-440.0,0.00019725,2]
[364555539,1749141043299,-440.0,0.00019725,2]
[364555541,1749141043308,-167.8728,0.00019726,2]
[364555543,1749141043318,-283.66393533,0.00019726,2]
[364555544,1749141043328,-440.0,0.00019726,2]
[364555546,1749141043338,-440.0,0.00019726,2]
[364555548,1749141043351,-440.0,0.00019726,2]
[364555550,1749141043360,-440.0,0.00019726,2]
[364555552,1749141043370,-190.98783582,0.00019726,2]
[364555554,1749141043379,-346.24338429,0.00019726,2]
[364555556,1749141043390,-390.0,0.00019726,2]
[364555558,1749141043399,-440.0,0.00019726,2]
[364555559,1749141043409,-440.0,0.00019726,2]
[364555561,1749141043419,-440.0,0.00019726,2]
[364555563,1749141043431,-440.0,0.00019726,2]
[364555565,1749141043441,-380.0,0.00019726,2]
[364555567,1749141043450,-323.84241964,0.00019726,2]
[364555569,1749141043459,-267.85071538,0.00019726,2]
[364555571,1749141043469,-534.94572853,0.00019726,2]
[364555573,1749141043479,-440.0,0.00019726,2]
[364555574,1749141043489,-440.0,0.00019726,2]
[364555576,1749141043500,-440.0,0.00019726,2]
[364555578,1749141043509,-440.0,0.00019726,2]
[364555580,1749141043523,-912.28,0.00019726,2]
[364555582,1749141043533,-440.0,0.00019726,2]
[364555584,1749141043543,-440.0,0.00019726,2]
[364555586,1749141043553,-440.0,0.00019726,2]
[364555588,1749141043562,-440.0,0.00019726,2]
[364555590,1749141043572,-430.0,0.00019726,2]
[364555592,1749141043582,-440.0,0.00019726,2]
[364555594,1749141043592,-440.0,0.00019726,2]
[364555596,1749141043601,-440.0,0.00019726,2]
[364555598,1749141043611,-320.0,0.00019726,2]
[364555599,1749141043621,-402.44,0.00019726,2]
[364555601,1749141043630,-440.0,0.00019726,2]
[364555603,1749141043640,-440.0,0.00019726,2]
[364555605,1749141043649,-493.57,0.00019726,2]
[364555607,1749141043659,-440.0,0.00019726,2]
[364555609,1749141043669,-440.0,0.00019726,2]
[364555611,1749141043678,-440.0,0.00019726,2]
[364555613,1749141043688,-16264.26,0.00019726,2]
[364555615,1749141043697,-515.97687301,0.00019726,2]
[364555616,1749141043708,-440.0,0.00019726,2]
[364555618,1749141043719,-440.0,0.00019726,2]
[364555620,1749141043729,-440.0,0.00019726,2]
[364555622,1749141043738,-1018.29,0.00019726,2]
[364555624,1749141043748,-440.0,0.00019726,2]
[364555626,1749141043758,-440.0,0.00019726,2]
[364555628,1749141043768,-440.0,0.00019726,2]
[364555630,1749141043778,-440.0,0.00019726,2]
[364555632,1749141043787,-582.13,0.00019726,2]
[364555633,1749141043797,-440.0,0.00019726,2]
[364555635,1749141043807,-440.0,0.00019726,2]
[364555637,1749141043819,-440.0,0.00019726,2]
[364555639,1749141043829,-440.0,0.00019726,2]
[364555641,1749141043839,-220.48550956,0.00019726,2]
[364555643,1749141043848,-440.0,0.00019726,2]
[364555645,1749141043859,-440.0,0.00019726,2]
[364555647,1749141043868,-440.0,0.00019726,2]
[364555649,1749141043878,-440.0,0.00019726,2]
[364555650,1749141043888,-288.03,0.00019726,2]
[364555652,1749141043898,-440.0,0.00019726,2]
[364555654,1749141043907,-1067.31,0.00019726,2]
[364555656,1749141043917,-440.0,0.00019726,2]
[364555658,1749141043928,-440.0,0.00019726,2]
[364555660,1749141043937,-500.0,0.00019726,2]
[364555662,1749141043947,-500.0,0.00019726,2]
[364555664,1749141043956,-977.61962131,0.00019728,2]
[364555665,1749141043965,-500.0,0.00019754,2]
[364555667,1749141043974,-500.0,0.00019754,2]
[364555668,1749141043984,-500.0,0.00019781,2]
[364555669,1749141043994,-500.0,0.00019781,2]
[364555670,1749141044004,-500.0,0.00019808,2]
[364555671,1749141044014,-500.0,0.00019808,2]
[364555672,1749141044025,-500.0,0.00019836,2]
[364555673,1749141044035,-500.0,0.00019836,2]
[364555674,1749141044045,-500.0,0.00019863,2]
[364555675,1749141044054,-500.0,0.00019863,2]
[364555676,1749141044064,-411.227,0.00019888,2]
[364555677,1749141044074,-500.0,0.00019891,2]
[364555678,1749141044083,-500.0,0.00019891,2]
[364555679,1749141044092,-5000.0,0.000199,3]
[364555680,1749141044102,-500.0,0.00019918,2]
[364555681,1749141044112,-500.0,0.00019918,2]
[364555682,1749141044122,-977.61962131,0.00019934,2]
[364555683,1749141044131,-500.0,0.00019945,2]
[364555684,1749141044140,-151.0,0.00019945,2]
[364555685,1749141044149,-500.0,0.00019973,2]
[364555686,1749141044159,-1127.32,0.00019989,3]
[364555687,1749141044168,-563.66,0.00019989,3]
[364555688,1749141044177,-519.95,0.00019999,2]
[364555689,1749141044187,-541.36,0.00019999,2]
[364555690,1749141044197,-1015.98,0.00019999,2]
[364555691,1749141044206,-440.0,0.00019999,2]
[364555692,1749141044216,-1147.64,0.00019999,2]
[364555693,1749141044225,-947.5,0.00019999,2]
[364555694,1749141044234,-440.0,0.00019999,2]
[364555695,1749141044243,-440.0,0.00019999,2]
[364555696,1749141044252,-440.0,0.00019999,2]
[364555697,1749141044262,-440.0,0.00019999,2]
[364555698,1749141044272,-440.0,0.00019999,2]
[364555699,1749141044282,-440.0,0.00019999,2]
[364555700,1749141044291,-558.03,0.00019999,2]
[364555701,1749141044300,-440.0,0.00019999,2]
[364555702,1749141044309,-399.15417083,0.00019999,2]
[364555703,1749141044318,-440.0,0.00019999,2]
[364555704,1749141044327,-440.0,0.00019999,2]
[364555705,1749141044337,-440.0,0.00019999,2]
[364555707,1749141044350,-440.0,0.00019999,2]
[364555708,1749141044362,-440.0,0.0002,2]
[364555709,1749141044371,-440.0,0.0002,2]
[364555711,1749141044382,-440.0,0.0002,2]
[364555712,1749141044391,-440.0,0.0002,2]
[364555714,1749141044400,-440.0,0.0002,2]
[364555716,1749141044409,-440.0,0.0002,2]
[364555718,1749141044418,-440.0,0.0002,2]
[364555720,1749141044431,-440.0,0.0002,2]
[364555722,1749141044440,-380.0,0.0002,2]
[364555724,1749141044450,-440.0,0.0002,2]
[364555726,1749141044459,-440.0,0.0002,2]
[364555728,1749141044468,-440.0,0.0002,2]
[364555730,1749141044477,-912.28,0.0002,2]
[364555732,1749141044487,-440.0,0.0002,2]
[364555734,1749141044496,-440.0,0.0002,2]
[364555736,1749141044506,-440.0,0.0002,2]
[364555738,1749141044516,-440.0,0.0002,2]
[364555740,1749141044527,-440.0,0.0002,2]
[364555742,1749141044536,-440.0,0.0002,2]
[364555744,1749141044545,-440.0,0.0002,2]
[364555746,1749141044555,-440.0,0.0002,2]
[364555748,1749141044564,-440.0,0.0002,2]
[364555750,1749141044573,-493.57,0.0002,2]
[364555752,1749141044582,-440.0,0.0002,2]
[364555754,1749141044591,-440.0,0.0002,2]
[364555756,1749141044601,-440.0,0.0002,2]
[364555758,1749141044610,-16264.26,0.0002,2]
[364555760,1749141044619,-440.0,0.0002,2]
[364555762,1749141044628,-440.0,0.0002,2]
[364555764,1749141044637,-440.0,0.0002,2]
[364555766,1749141044646,-1018.29,0.0002,2]
[364555768,1749141044656,-440.0,0.0002,2]
[364555770,1749141044665,-440.0,0.0002,2]
[364555772,1749141044674,-440.0,0.0002,2]
[364555774,1749141044685,-440.0,0.0002,2]
[364555777,1749141044694,-582.13,0.0002,2]
[364555783,1749141044742,-440.0,0.0002,2]
[364555785,1749141044752,-440.0,0.0002,2]
[364555787,1749141044761,-440.0,0.0002,2]
[364555789,1749141044770,-370.0,0.0002,2]
[364555791,1749141044779,-440.0,0.0002,2]
[364555793,1749141044788,-544.03042737,0.0002,2]
[364555795,1749141044798,-380.0,0.0002,2]
[364555797,1749141044807,-440.0,0.0002,2]
[364555799,1749141044816,-440.0,0.0002,2]
[364555801,1749141044825,-1067.31,0.0002,2]
[364555803,1749141044834,-440.0,0.0002,2]
[364555804,1749141044844,-440.0,0.0002,2]
[364555806,1749141044852,-371.85051216,0.0002,2]
[364555808,1749141044862,-977.61962131,0.00020141,2]
[364555810,1749141044871,-1500.0,0.00020181,2]
[364555812,1749141044880,-16000.0,0.00020262,2]
[364555814,1749141044891,-440.0,0.00020273,2]
[364555816,1749141044900,-440.0,0.00020273,2]
[364555818,1749141044909,-440.0,0.00020273,2]
[364555821,1749141044919,-440.0,0.00020273,2]
[364555823,1749141044929,-440.0,0.00020273,2]
[364555824,1749141044938,-390.0,0.00020273,2]
[364555826,1749141044947,-440.0,0.00020273,2]
[364555828,1749141044956,-440.0,0.00020273,2]
[364555830,1749141044966,-519.95,0.00020273,2]
[364555832,1749141044975,-541.36,0.00020273,2]
[364555834,1749141044984,-451.35685803,0.00020273,2]
[364555836,1749141044994,-440.0,0.00020273,2]
[364555839,1749141045003,-1015.98,0.00020273,2]
[364555841,1749141045013,-380.0,0.00020273,2]
[364555843,1749141045024,-912.28,0.00020273,2]
[364555845,1749141045034,-440.0,0.00020273,2]
[364555847,1749141045043,-342.32,0.00020273,2]
[364555849,1749141045053,-1147.64,0.00020273,2]
[364555851,1749141045062,-440.0,0.00020273,2]
[364555853,1749141045070,-947.5,0.00020273,2]
[364555855,1749141045079,-440.0,0.00020273,2]
[364555856,1749141045088,-440.0,0.00020273,2]
[364555859,1749141045098,-440.0,0.00020273,2]
[364555860,1749141045107,-184.00243843,0.00020273,2]
[364555862,1749141045116,-440.0,0.00020273,2]
[364555864,1749141045125,-440.0,0.00020273,2]
[364555866,1749141045135,-440.0,0.00020273,2]
[364555869,1749141045144,-440.0,0.00020273,2]
[364555870,1749141045154,-440.0,0.00020273,2]
[364555872,1749141045163,-440.0,0.00020273,2]
[364555874,1749141045173,-403.36,0.00020273,2]
[364555876,1749141045185,-493.57,0.00020273,2]
[364555878,1749141045195,-440.0,0.00020273,2]
[364555881,1749141045206,-440.0,0.00020273,2]
[364555882,1749141045215,-440.0,0.00020273,2]
[364555884,1749141045225,-440.0,0.00020273,2]
[364555886,1749141045234,-440.0,0.00020273,2]
[364555888,1749141045243,-16264.26,0.00020273,2]
[364555890,1749141045254,-440.0,0.00020273,2]
[364555892,1749141045263,-558.03,0.00020273,2]
[364555894,1749141045274,-440.0,0.00020273,2]
[364555896,1749141045283,-440.0,0.00020273,2]
[364555898,1749141045292,-1018.29,0.00020273,2]
[364555900,1749141045301,-440.0,0.00020273,2]
[364555902,1749141045310,-440.0,0.00020273,2]
[364555904,1749141045320,-440.0,0.00020273,2]
[364555906,1749141045329,-440.0,0.00020273,2]
[364555908,1749141045339,-582.13,0.00020273,2]
[364555910,1749141045352,-440.0,0.00020273,2]
[364555913,1749141045362,-420.0,0.00020273,2]
[364555916,1749141045372,-440.0,0.00020273,2]
[364555918,1749141045382,-440.0,0.00020273,2]
[364555921,1749141045392,-440.0,0.00020273,2]
[364555922,1749141045403,-440.0,0.00020273,2]
[364555924,1749141045414,-440.0,0.00020273,2]
[364555928,1749141045426,-554.09231252,0.00020273,2]
[364555932,1749141045436,-440.0,0.00020273,2]
[364555934,1749141045445,-483.99,0.00020273,2]
[364555936,1749141045455,-1067.31,0.00020273,2]
[364555938,1749141045464,-440.0,0.00020273,2]
[364555941,1749141045474,-440.0,0.00020273,2]
[364555942,1749141045483,-440.0,0.00020273,2]
[364555946,1749141045492,-977.61962131,0.00020348,3]
[364555948,1749141045503,-658.12303884,0.00020448,2]
[364555950,1749141045512,-500.0,0.00020488,2]
[364555951,1749141045524,-440.0,0.00020547,2]
[364555954,1749141045534,-440.0,0.00020547,2]
[364555956,1749141045543,-273.80503044,0.00020547,2]
[364555957,1749141045552,-500.0,0.00020547,2]
[364555959,1749141045562,-440.0,0.00020547,2]
[364555961,1749141045571,-440.0,0.00020547,2]
[364555964,1749141045581,-440.0,0.00020547,2]
[364555966,1749141045591,-440.0,0.00020547,2]
[364555968,1749141045600,-519.95,0.00020547,2]
[364555969,1749141045610,-541.36,0.00020547,2]
[364555972,1749141045619,-440.0,0.00020547,2]
[364555974,1749141045629,-1015.98,0.00020547,2]
[364555976,1749141045639,-912.28,0.00020547,2]
[364555978,1749141045648,-440.0,0.00020547,2]
[364555980,1749141045658,-1147.64,0.00020547,2]
[364555982,1749141045668,-947.5,0.00020547,2]
[364555984,1749141045677,-440.0,0.00020547,2]
[364555986,1749141045687,-440.0,0.00020547,2]
[364555988,1749141045696,-440.0,0.00020547,2]
[364555990,1749141045706,-253.21211109,0.00020547,2]
[364555992,1749141045715,-440.0,0.00020547,2]
[364555994,1749141045725,-442.31,0.00020547,2]
[364555996,1749141045735,-440.0,0.00020547,2]
[364555998,1749141045745,-440.0,0.00020547,2]
[364556000,1749141045754,-440.0,0.00020547,2]
[364556002,1749141045763,-493.57,0.00020547,2]
[364556004,1749141045775,-440.0,0.00020547,2]
[364556006,1749141045785,-440.0,0.00020547,2]
[364556008,1749141045795,-380.0,0.00020547,2]
[364556010,1749141045804,-342.11756725,0.00020547,2]
[364556012,1749141045813,-440.0,0.00020547,2]
[364556014,1749141045823,-16264.26,0.00020547,2]
[364556016,1749141045832,-440.0,0.00020547,2]
[364556018,1749141045842,-558.03,0.00020547,2]
[364556020,1749141045851,-440.0,0.00020547,2]
[364556022,1749141045861,-420.0,0.00020547,2]
[364556024,1749141045870,-1018.29,0.00020547,2]
[364556026,1749141045880,-440.0,0.00020547,2]
[364556028,1749141045890,-440.0,0.00020547,2]
[364556030,1749141045899,-440.0,0.00020547,2]
[364556032,1749141045909,-440.0,0.00020547,2]
[364556034,1749141045919,-582.13,0.00020547,2]
[364556036,1749141045928,-440.0,0.00020547,2]
[364556038,1749141045938,-440.0,0.00020547,2]
[364556040,1749141045948,-440.0,0.00020547,2]
[364556042,1749141045957,-440.0,0.00020547,2]
[364556044,1749141045967,-430.0,0.00020547,2]
[364556046,1749141045976,-440.0,0.00020547,2]
[364556048,1749141045985,-440.0,0.00020547,2]
[364556050,1749141045996,-1067.31,0.00020547,2]
[364556052,1749141046005,-440.0,0.00020547,2]
[364556054,1749141046015,-440.0,0.00020547,2]
[364556056,1749141046028,-440.0,0.00020547,2]
[364556058,1749141046038,-977.61962131,0.00020555,3]
[364556060,1749141046047,-12675.11581177,0.00020555,3]
[364556063,1749141046057,-1187.73,0.000206,2]
[364556065,1749141046067,-2799.72,0.000206,2]
[364556066,1749141046077,-2000.0,0.00020729,2]
[364556068,1749141046086,-977.61962131,0.00020762,3]
[364556071,1749141046096,-16000.0,0.0002081,2]
[364556073,1749141046106,-509.46,0.00020821,2]
[364556075,1749141046115,-314.94,0.00020821,2]
[364556077,1749141046125,-440.0,0.00020821,2]
[364556079,1749141046135,-440.0,0.00020821,2]
[364556081,1749141046144,-440.0,0.00020821,2]
[364556083,1749141046155,-520.87,0.00020821,2]
[364556085,1749141046164,-519.95,0.00020821,2]
[364556087,1749141046174,-541.36,0.00020821,2]
[364556089,1749141046183,-440.0,0.00020821,2]
[364556091,1749141046192,-1015.98,0.00020821,2]
[364556093,1749141046202,-912.28,0.00020821,2]
[364556095,1749141046211,-440.0,0.00020821,2]
[364556097,1749141046220,-1147.64,0.00020821,2]
[364556099,1749141046230,-947.5,0.00020821,2]
[364556101,1749141046240,-440.0,0.00020821,2]
[364556103,1749141046249,-440.0,0.00020821,2]
[364556105,1749141046260,-440.0,0.00020821,2]
[364556107,1749141046270,-440.0,0.00020821,2]
[364556109,1749141046280,-259.47,0.00020821,2]
[364556111,1749141046289,-440.0,0.00020821,2]
[364556113,1749141046299,-440.0,0.00020821,2]
[364556115,1749141046309,-493.57,0.00020821,2]
[364556117,1749141046319,-440.0,0.00020821,2]
[364556120,1749141046329,-440.0,0.00020821,2]
[364556122,1749141046338,-440.0,0.00020821,2]
[364556124,1749141046349,-16264.26,0.00020821,2]
[364556126,1749141046359,-440.0,0.00020821,2]
[364556128,1749141046369,-558.03,0.00020821,2]
[364556130,1749141046378,-440.0,0.00020821,2]
[364556132,1749141046388,-1018.29,0.00020821,2]
[364556134,1749141046397,-295.71113709,0.00020821,2]
[364556136,1749141046407,-440.0,0.00020821,2]
[364556138,1749141046416,-251.47315985,0.00020821,2]
[364556140,1749141046429,-440.0,0.00020821,2]
[364556142,1749141046439,-582.13,0.00020821,2]
[364556144,1749141046449,-440.0,0.00020821,2]
[364556146,1749141046458,-440.0,0.00020821,2]
[364556148,1749141046467,-485.79,0.00020821,2]
[364556150,1749141046477,-440.0,0.00020821,2]
[364556152,1749141046486,-440.0,0.00020821,2]
[364556154,1749141046495,-440.0,0.00020821,2]
[364556156,1749141046505,-1067.31,0.00020821,2]
[364556158,1749141046516,-440.0,0.00020821,2]